bitfinex/quotes_BTCUSD_20251226
["timestamp","ask_amount","ask_price","bid_price","bid_amount"]
[1766752156158,0.01127332,88705.0,88697.0,0.01127433]
[1766752156705,0.01127319,88706.0,88698.0,0.01127421]
[1766752156912,0.01127332,88705.0,88697.0,0.01127433]
[1766752157608,0.01127344,88704.0,88695.0,0.07892707]
[1766752157855,0.01127332,88705.0,88695.0,0.07892707]
[1766752158285,0.01127332,88705.0,88696.0,0.01127446]
[1766752158590,0.01127332,88705.0,88697.0,0.01127433]
[1766752160771,0.01127332,88705.0,88696.0,0.01127446]
[1766752161076,0.01127332,88705.0,88697.0,0.01127433]
[1766752161379,0.01127319,88706.0,88698.0,0.01127421]
[1766752161554,0.01127332,88705.0,88697.0,0.01127433]
[1766752162330,0.01127255,88711.0,88701.0,0.01127383]
[1766752162548,0.05636209,88713.0,88702.0,0.0112737]
[1766752162549,0.01127268,88710.0,88702.0,0.0112737]
[1766752162762,0.01127281,88709.0,88701.0,0.06764282]
[1766752164566,0.01127268,88710.0,88701.0,0.06764282]
[1766752165104,0.01127268,88710.0,88702.0,0.0112737]
[1766752165697,0.01127268,88710.0,88701.0,0.06764282]
[1766752166067,0.01127268,88710.0,88700.0,0.01127395]
[1766752166068,0.01127281,88709.0,88700.0,0.01127395]
[1766752166297,0.01127281,88709.0,88701.0,0.01127383]
[1766752166655,0.01127281,88709.0,88700.0,0.01127395]
[1766752167707,0.01127281,88709.0,88701.0,0.01127383]
[1766752167913,0.01127281,88709.0,88700.0,0.01127395]
[1766752168116,0.01127281,88709.0,88701.0,0.01127383]
[1766752168319,0.01127281,88709.0,88700.0,0.01127395]
[1766752168821,0.01127281,88709.0,88701.0,0.01127383]
[1766752169001,0.01127281,88709.0,88700.0,0.01127395]
[1766752169319,0.01127281,88709.0,88701.0,0.01127383]
[1766752169523,0.01127281,88709.0,88700.0,0.01127395]
[1766752169817,0.01127268,88710.0,88701.0,0.01127383]
[1766752170290,0.01127281,88709.0,88701.0,0.01127383]
[1766752170626,0.01127281,88709.0,88700.0,0.01127395]
[1766752171416,0.01127281,88709.0,88701.0,0.01127383]
[1766752171722,0.01127281,88709.0,88700.0,0.01127395]
[1766752171886,0.01127294,88708.0,88699.0,0.0676442]
[1766752172088,0.01127294,88708.0,88700.0,0.01127395]
[1766752172269,0.01127281,88709.0,88701.0,0.01127383]
[1766752172632,0.01127294,88708.0,88699.0,0.01127408]
[1766752173248,0.01127294,88708.0,88700.0,0.01127395]
[1766752173608,0.01127294,88708.0,88699.0,0.01127408]
[1766752174641,0.01127306,88707.0,88698.0,0.01127421]
[1766752174983,0.01127319,88706.0,88698.0,0.01127421]
[1766752175606,0.01127319,88706.0,88697.0,0.06864544]
[1766752175813,0.01127319,88706.0,88697.0,0.01227433]
[1766752178099,0.01127332,88705.0,88697.0,0.01227433]
[1766752181296,0.01127319,88706.0,88697.0,0.01227433]
[1766752182081,0.01127319,88706.0,88698.0,0.01127421]
[1766752183125,0.01127306,88707.0,88699.0,0.01127408]
[1766752183346,0.0676379,88708.0,88699.0,0.01127408]
[1766752183874,0.0676379,88708.0,88698.0,0.01127421]
[1766752184075,0.01127319,88706.0,88698.0,0.01127421]
[1766752187258,0.01127306,88707.0,88698.0,0.01127421]
[1766752187878,0.01127319,88706.0,88698.0,0.01127421]
[1766752188373,0.01127306,88707.0,88698.0,0.01127421]
[1766752190217,0.01127319,88706.0,88698.0,0.01127421]
[1766752191012,0.01127306,88707.0,88698.0,0.01127421]
[1766752192608,0.01127306,88707.0,88699.0,0.01127408]
[1766752192773,0.01127306,88707.0,88698.0,0.01127421]
[1766752192975,0.01127306,88707.0,88699.0,0.01127408]
[1766752193927,0.01127306,88707.0,88698.0,0.01127421]
[1766752193928,0.01127319,88706.0,88698.0,0.01127421]
[1766752195812,0.01127357,88703.0,88697.0,0.001]
[1766752196016,0.01127344,88704.0,88697.0,0.001]
[1766752196339,0.01127357,88703.0,88697.0,0.001]
[1766752196537,0.01127395,88700.0,88697.0,0.001]
[1766752196738,0.0112737,88702.0,88697.0,0.001]
[1766752196883,0.01127344,88704.0,88697.0,0.001]
[1766752197087,0.01127357,88703.0,88697.0,0.001]
[1766752198940,0.01127344,88704.0,88697.0,0.001]
[1766752199141,0.01127357,88703.0,88697.0,0.001]
[1766752200289,0.01127344,88704.0,88697.0,0.001]
[1766752201444,0.0112737,88702.0,88697.0,0.001]
[1766752201706,0.00055,88697.0,88696.0,0.01128]
[1766752201915,0.01127383,88701.0,88696.0,0.01128]
[1766752202445,0.01127408,88699.0,88696.0,0.01128]
[1766752202676,0.01127408,88699.0,88696.0,0.01073]
[1766752202870,0.01127395,88700.0,88696.0,0.01073]
[1766752203072,0.01127383,88701.0,88696.0,0.01073]
[1766752203276,0.01127395,88700.0,88692.0,0.01127497]
[1766752203481,0.01127395,88700.0,88695.0,0.01128]
[1766752203835,0.01127383,88701.0,88695.0,0.01128]
[1766752204661,0.0112737,88702.0,88695.0,0.01128]
[1766752207439,0.01127383,88701.0,88695.0,0.01128]
[1766752209509,0.01127395,88700.0,88695.0,0.01128]
[1766752209715,0.01127383,88701.0,88695.0,0.01128]
[1766752210346,0.0112737,88702.0,88695.0,0.01128]
[1766752210553,0.05636667,88705.0,88695.0,0.01128]
[1766752210699,0.0112737,88702.0,88695.0,0.01128]
[1766752212579,0.00897138,88702.0,88695.0,0.01128]
[1766752214226,0.01127383,88701.0,88695.0,0.01128]
[1766752215745,0.00897138,88702.0,88695.0,0.01128]
[1766752220915,0.01127357,88703.0,88695.0,0.01128]
[1766752221105,0.01127344,88704.0,88695.0,0.02255459]
[1766752222560,0.01127344,88704.0,88696.0,0.01127446]
[1766752222719,0.01127344,88704.0,88695.0,0.02255459]
[1766752223153,0.01127357,88703.0,88695.0,0.02255459]
[1766752223299,0.0112737,88702.0,88695.0,0.01128]
[1766752227023,0.01127395,88700.0,88695.0,0.01128]
[1766752227242,0.01127408,88699.0,88695.0,0.01128]
[1766752227597,0.01127395,88700.0,88695.0,0.01128]
[1766752228504,0.01127383,88701.0,88695.0,0.01128]
[1766752229084,0.0112737,88702.0,88695.0,0.01128]
[1766752231378,0.01127357,88703.0,88695.0,0.02255459]
[1766752231821,0.01127357,88703.0,88695.0,0.01128]
[1766752232058,0.01127357,88703.0,88695.0,0.02255459]
[1766752232249,0.0112737,88702.0,88695.0,0.01128]
[1766752232443,0.01127357,88703.0,88695.0,0.01128]
[1766752233660,0.0112737,88702.0,88695.0,0.01128]
[1766752235313,0.01127357,88703.0,88695.0,0.02255459]
[1766752235509,0.06764101,88704.0,88695.0,0.02255459]
[1766752235712,0.01127344,88704.0,88696.0,0.01127446]
[1766752235911,0.01127344,88704.0,88695.0,0.02255459]
[1766752237233,0.01127344,88704.0,88696.0,0.01127446]
[1766752238229,0.0112737,88702.0,88695.0,0.01128]
[1766752238840,0.01127357,88703.0,88695.0,0.01128]
[1766752239061,0.0112737,88702.0,88695.0,0.01128]
[1766752240481,0.01127383,88701.0,88695.0,0.01128]
[1766752240661,0.0112737,88702.0,88695.0,0.01128]
[1766752241967,0.01127383,88701.0,88695.0,0.01128]
[1766752243341,0.0112737,88702.0,88695.0,0.01128]
[1766752243544,0.01127357,88703.0,88695.0,0.01128]
[1766752243749,0.01127383,88701.0,88695.0,0.01128]
[1766752243976,0.01127395,88700.0,88695.0,0.01128]
[1766752244169,0.01127383,88701.0,88695.0,0.01128]
[1766752244541,0.01127395,88700.0,88695.0,0.01128]
[1766752244764,0.01127484,88693.0,88684.0,0.01127599]
[1766752244937,0.01127484,88693.0,88688.0,0.01128]
[1766752245533,0.01127459,88695.0,88693.0,0.000549]
[1766752246103,0.01127459,88695.0,88688.0,0.01128]
[1766752248639,0.01127471,88694.0,88688.0,0.01128]
[1766752249789,0.01127484,88693.0,88688.0,0.01128]
[1766752249995,0.01127471,88694.0,88688.0,0.01128]
[1766752250143,0.01127484,88693.0,88688.0,0.01128]
[1766752250554,0.01127497,88692.0,88688.0,0.01128]
[1766752250762,0.0112751,88691.0,88688.0,0.01128]
[1766752251575,0.06765097,88691.0,88688.0,0.01128]
[1766752252811,0.0112751,88691.0,88688.0,0.01128]
[1766752253015,0.06765033,88692.0,88688.0,0.01128]
[1766752254148,0.01127497,88692.0,88688.0,0.01128]
[1766752257215,0.0112751,88691.0,88683.0,0.01127611]
[1766752257416,0.01127522,88690.0,88682.0,0.01128]
[1766752257620,0.01127522,88690.0,88682.0,0.02255624]
[1766752258167,0.01127535,88689.0,88682.0,0.01128]
[1766752258980,0.01127522,88690.0,88682.0,0.02255624]
[1766752260173,0.01127522,88690.0,88682.0,0.01128]
[1766752260639,0.01127535,88689.0,88682.0,0.01128]
[1766752261646,0.0112756,88687.0,88682.0,0.01128]
[1766752261845,0.01127599,88684.0,88680.0,0.01128]
[1766752262051,0.01127611,88683.0,88680.0,0.01128]
[1766752263590,0.06765701,88683.0,88680.0,0.01128]
[1766752263787,0.06765701,88683.0,88678.0,0.0002]
[1766752263788,0.06765823,88681.0,88678.0,0.0002]
[1766752264140,0.011277,88676.0,88673.0,0.01128]
[1766752264418,0.011277,88676.0,88673.0,0.01133269]
[1766752264907,0.01127662,88679.0,88676.0,0.000549]
[1766752265324,0.01127662,88679.0,88673.0,5.269e-05]
[1766752265836,0.07893886,88681.0,88673.0,5.269e-05]
[1766752266038,0.01127649,88680.0,88673.0,5.269e-05]
[1766752266181,0.01127662,88679.0,88673.0,5.269e-05]
[1766752266383,0.01072775,88678.0,88673.0,5.269e-05]
[1766752267538,0.01127688,88677.0,88673.0,5.269e-05]
[1766752267683,0.011277,88676.0,88673.0,5.269e-05]
[1766752267888,0.01127688,88677.0,88673.0,5.269e-05]
[1766752271226,0.01127688,88677.0,88668.0,0.01127802]
[1766752271227,0.05639076,88667.0,88666.0,1e-08]
[1766752271448,0.01127789,88669.0,88666.0,4.456e-05]
[1766752271449,0.01127802,88668.0,88666.0,4.456e-05]
[1766752271662,0.06766624,88671.0,88668.0,5.2e-05]
[1766752271851,0.05638758,88672.0,88671.0,0.00055]
[1766752272268,0.05638758,88672.0,88666.0,4.456e-05]
[1766752272269,0.01127891,88670.0,88666.0,4.456e-05]
[1766752273241,0.02255668,88670.0,88666.0,4.456e-05]
[1766752273865,0.01127777,88670.0,88666.0,4.456e-05]
[1766752274073,0.01127789,88669.0,88666.0,4.456e-05]
[1766752274275,0.0225048,88669.0,88666.0,4.456e-05]
[1766752274630,0.01127891,88669.0,88666.0,4.456e-05]
[1766752274838,0.0225568,88669.0,88666.0,4.456e-05]
[1766752275043,0.01127789,88669.0,88666.0,4.456e-05]
[1766752275263,0.03384799,88668.0,88666.0,4.456e-05]
[1766752276027,0.05639076,88667.0,88666.0,4.456e-05]
[1766752276312,0.05639076,88667.0,88666.0,5.6e-07]
[1766752276751,0.09023875,88667.0,88666.0,5.6e-07]
[1766752279788,0.03380399,88667.0,88666.0,5.6e-07]
[1766752289049,0.01127675,88678.0,88668.0,0.01127802]
[1766752289249,0.01128,88675.0,88670.0,0.01127777]
[1766752289451,0.02067054,88674.0,88670.0,0.01127777]
[1766752289626,0.02255662,88679.0,88670.0,0.01127777]
[1766752289833,0.05640251,88679.0,88671.0,0.01127764]
[1766752290010,0.01127675,88678.0,88670.0,0.01127777]
[1766752290211,0.01127675,88678.0,88669.0,0.01127789]
[1766752290614,0.01127688,88677.0,88669.0,0.01127789]
[1766752290785,0.01127675,88678.0,88669.0,0.01127789]
[1766752290986,0.01127675,88678.0,88670.0,0.01127777]
[1766752291189,0.01127675,88678.0,88669.0,0.01127789]
[1766752291755,0.01127688,88677.0,88669.0,0.01127789]
[1766752292991,0.01127675,88678.0,88669.0,0.01127789]
[1766752294176,0.01127688,88677.0,88669.0,0.01127789]
[1766752295639,0.01127688,88677.0,88668.0,0.01127802]
[1766752295857,0.01127688,88677.0,88669.0,0.01127789]
[1766752296872,0.01127688,88677.0,88668.0,0.01127802]
[1766752297098,0.000549,88668.0,88666.0,5.6e-07]
[1766752297642,0.01127738,88673.0,88666.0,5.6e-07]
[1766752298063,0.01127726,88674.0,88666.0,5.6e-07]
[1766752298478,0.01127751,88672.0,88666.0,5.6e-07]
[1766752298717,0.01127777,88670.0,88666.0,5.6e-07]
[1766752300167,0.01127764,88671.0,88666.0,5.6e-07]
[1766752301401,0.01107779,88671.0,88666.0,5.6e-07]
[1766752302207,0.06746644,88671.0,88664.0,0.01128]
[1766752302410,0.01127789,88669.0,88664.0,0.010731]
[1766752302628,0.01127815,88667.0,88664.0,0.010731]
[1766752304106,0.01127789,88669.0,88664.0,0.010731]
[1766752304306,0.01127802,88668.0,88664.0,0.010731]
[1766752305291,0.01127789,88669.0,88664.0,0.010731]
[1766752305488,0.06766708,88670.0,88664.0,0.010731]
[1766752305905,9.72e-05,88671.0,88670.0,0.000549]
[1766752306280,9.72e-05,88671.0,88664.0,0.02200953]
[1766752307699,9.72e-05,88671.0,88665.0,0.0112784]
[1766752309059,9.72e-05,88671.0,88664.0,0.02200953]
[1766752309528,9.72e-05,88671.0,88664.0,0.010731]
[1766752309736,9.72e-05,88671.0,88664.0,0.02200953]
[1766752311299,9.72e-05,88671.0,88665.0,0.0112784]
[1766752311641,9.72e-05,88671.0,88664.0,0.02200953]
[1766752313184,9.72e-05,88671.0,88665.0,0.0112784]
[1766752313403,9.72e-05,88671.0,88664.0,0.02200953]
[1766752314546,0.01137484,88671.0,88664.0,0.010731]
[1766752314748,0.01127777,88670.0,88664.0,0.010731]
[1766752317467,0.01137484,88671.0,88664.0,0.010731]
[1766752317878,0.01137484,88671.0,88663.0,0.01127866]
[1766752318173,0.01137484,88671.0,88663.0,0.02255866]
[1766752318938,9.72e-05,88671.0,88664.0,0.01127853]
[1766752319147,9.72e-05,88671.0,88665.0,0.0112784]
[1766752319507,2e-07,88671.0,88666.0,0.01127828]
[1766752319689,2e-07,88671.0,88667.0,0.01127815]
[1766752320477,2e-07,88671.0,88666.0,0.01127828]
[1766752321980,2e-07,88671.0,88665.0,0.0112784]
[1766752322799,2e-07,88671.0,88666.0,0.01127828]
[1766752325159,2e-07,88671.0,88665.0,0.0112784]
[1766752325704,2e-07,88671.0,88666.0,0.01127828]
[1766752327440,2e-07,88671.0,88667.0,0.01127815]
[1766752327646,2e-07,88671.0,88668.0,0.01127802]
[1766752329969,2e-07,88671.0,88667.0,0.01127815]
[1766752331857,2e-07,88671.0,88666.0,0.01127828]
[1766752332390,2e-07,88671.0,88667.0,0.01127815]
[1766752332990,2e-07,88671.0,88668.0,0.01127802]
[1766752333491,2e-07,88671.0,88667.0,0.01127815]
[1766752334066,2e-07,88671.0,88668.0,0.01127802]
[1766752338046,2e-07,88671.0,88666.0,0.06766942]
[1766752338212,9.7e-05,88668.0,88666.0,0.01127828]
[1766752338620,2e-07,88671.0,88667.0,0.01127815]
[1766752339621,2e-07,88671.0,88666.0,0.01127828]
[1766752339920,0.0563951,88661.0,88650.0,0.01128031]
[1766752340144,0.01127917,88659.0,88651.0,0.01128]
[1766752340338,0.06767401,88661.0,88653.0,0.01127713]
[1766752340535,0.06767401,88661.0,88653.0,0.01127993]
[1766752340874,0.01127891,88661.0,88653.0,0.01127993]
[1766752341071,0.01127891,88661.0,88652.0,0.01128006]
[1766752341871,0.01127891,88661.0,88653.0,0.01127993]
[1766752342528,0.01127904,88660.0,88652.0,0.01128006]
[1766752342837,0.01127891,88661.0,88653.0,0.01127993]
[1766752343458,0.01127891,88661.0,88653.0,0.02255993]
[1766752344444,0.01127878,88662.0,88653.0,0.02255993]
[1766752344862,0.01127891,88661.0,88653.0,0.02255993]
[1766752345506,0.01127891,88661.0,88653.0,0.01128]
[1766752345855,0.01127891,88661.0,88653.0,0.02255993]
[1766752346362,0.01127942,88657.0,88653.0,0.011183]
[1766752346589,0.01127929,88658.0,88653.0,0.011183]
[1766752347285,0.01127917,88659.0,88653.0,0.011183]
[1766752347690,0.01127929,88658.0,88653.0,0.011183]
[1766752348458,0.01127917,88659.0,88653.0,0.011183]
[1766752348968,0.06767432,88660.0,88653.0,0.011183]
[1766752349191,0.01127891,88661.0,88653.0,0.02246293]
[1766752349392,0.01127878,88662.0,88654.0,0.0112798]
[1766752349592,0.01127866,88663.0,88655.0,0.01127967]
[1766752350725,0.01127866,88663.0,88654.0,0.0112798]
[1766752350926,0.01127878,88662.0,88654.0,0.0112798]
[1766752351087,0.01127866,88663.0,88654.0,0.0112798]
[1766752352129,0.06767137,88664.0,88655.0,0.01127967]
[1766752352331,0.01127866,88663.0,88654.0,0.0112798]
[1766752353291,0.01127904,88660.0,88653.0,0.011183]
[1766752353514,0.01127904,88660.0,88653.0,0.010633]
[1766752353515,0.01127917,88659.0,88653.0,0.010633]
[1766752353871,0.01127929,88658.0,88653.0,0.010633]
[1766752354055,0.01127917,88659.0,88653.0,0.010633]
[1766752354451,0.01127929,88658.0,88653.0,0.010633]
[1766752354842,0.01127917,88659.0,88653.0,0.010633]
[1766752355081,0.01127929,88658.0,88653.0,0.010633]
[1766752355875,0.01127942,88657.0,88653.0,0.010633]
[1766752356046,0.01127929,88658.0,88653.0,0.010633]
[1766752357767,0.01127917,88659.0,88653.0,0.010633]
[1766752357971,0.01127904,88660.0,88653.0,0.010633]
[1766752363695,0.05639192,88666.0,88653.0,0.010633]
[1766752363902,0.01127675,88678.0,88667.0,0.01127815]
[1766752364106,0.01128,88681.0,88675.0,0.01127713]
[1766752364306,0.01128,88682.0,88674.0,0.01127726]
[1766752364523,0.02255624,88682.0,88673.0,0.01127738]
[1766752364908,0.01127649,88680.0,88672.0,0.01127751]
[1766752365103,0.01127649,88680.0,88671.0,0.01127764]
[1766752365530,0.01127649,88680.0,88672.0,0.01127751]
[1766752366717,0.03043911,88693.0,88680.0,0.01237549]
[1766752366915,0.0112737,88702.0,88692.0,0.01127497]
[1766752367122,0.0112737,88702.0,88693.0,0.01107484]
[1766752367332,0.01127383,88701.0,88693.0,0.01107484]
[1766752367531,0.01127408,88699.0,88692.0,0.40340285]
[1766752367734,0.01127408,88699.0,88691.0,0.0225551]
[1766752368097,0.01127395,88700.0,88691.0,0.0225551]
[1766752368238,0.01127408,88699.0,88692.0,0.01127408]
[1766752368793,0.01127395,88700.0,88692.0,0.01127408]
[1766752369081,0.01127383,88701.0,88692.0,0.02254905]
[1766752369286,0.0112737,88702.0,88693.0,0.01127484]
[1766752369668,0.0112737,88702.0,88693.0,0.06989512]
[1766752369876,0.0112737,88702.0,88694.0,0.01127471]
[1766752370043,0.00010133,88704.0,88695.0,0.01127459]
[1766752370248,3.3e-07,88704.0,88698.0,0.01008495]
[1766752370450,3.3e-07,88704.0,88700.0,0.01127395]
[1766752370654,3.3e-07,88704.0,88699.0,0.01127408]
[1766752370900,3.3e-07,88704.0,88698.0,0.01008495]
[1766752371105,3.3e-07,88704.0,88697.0,0.01127433]
[1766752371515,0.000101,88697.0,88695.0,0.01127459]
[1766752371668,0.000101,88697.0,88692.0,0.01127408]
[1766752371875,0.01127446,88696.0,88692.0,0.01127408]
[1766752372274,0.01127421,88698.0,88692.0,0.01127408]
[1766752372275,0.01127421,88698.0,88692.0,0.02255408]
[1766752373177,0.01127433,88697.0,88692.0,0.02255408]
[1766752373777,0.01127433,88697.0,88692.0,0.02245308]
[1766752374643,0.01127433,88697.0,88692.0,0.01117308]
[1766752375141,0.01127446,88696.0,88692.0,0.01117308]
[1766752375627,0.01127433,88697.0,88692.0,0.01117308]
[1766752379788,0.01127433,88697.0,88692.0,0.01028096]
[1766752380735,0.01127433,88697.0,88690.0,0.01128]
[1766752380929,0.01127433,88697.0,88692.0,0.01128]
[1766752381534,0.01127433,88697.0,88692.0,0.00613242]
[1766752381874,0.01127446,88696.0,88690.0,0.01128]
[1766752382035,0.01127433,88697.0,88690.0,0.01128]
[1766752382451,0.01127446,88696.0,88691.0,0.01128]
[1766752382860,0.01127484,88693.0,88689.0,0.01128]
[1766752383100,0.01127459,88695.0,88689.0,0.02256]
[1766752383260,0.01127471,88694.0,88689.0,0.02256]
[1766752383457,0.01127484,88693.0,88689.0,0.01128]
[1766752383691,0.01127497,88692.0,88687.0,0.01128]
[1766752384194,0.06764939,88693.0,88687.0,0.01128]
[1766752384195,0.01127484,88693.0,88687.0,0.01128]
[1766752387104,0.0112751,88691.0,88687.0,0.01128]
[1766752387306,0.06764873,88694.0,88681.0,0.01128]
[1766752387307,0.01127599,88684.0,88681.0,0.01128]
[1766752387605,0.01127573,88686.0,88683.0,0.01128]
[1766752391143,0.0112756,88687.0,88683.0,0.01128]
[1766752391307,0.0112756,88687.0,88678.0,0.01127675]
[1766752391680,0.01127573,88686.0,88679.0,0.01128]
[1766752392256,0.0112756,88687.0,88679.0,0.01128]
[1766752392962,0.01127573,88686.0,88679.0,0.01128]
[1766752397058,0.01127586,88685.0,88679.0,0.01128]
[1766752397260,0.01127611,88683.0,88679.0,0.01128]
[1766752397688,0.01127624,88682.0,88679.0,0.01128]
[1766752397878,0.06765652,88684.0,88679.0,0.01128]
[1766752398057,0.03043911,88706.0,88680.0,0.01128]
[1766752398058,0.06765858,88681.0,88680.0,0.01128]
[1766752398268,0.01127637,88681.0,88680.0,0.01128]
[1766752398621,0.1466,88682.0,88670.0,0.0002]
[1766752398774,0.01127726,88674.0,88666.0,0.08344911]
[1766752398988,0.01127713,88675.0,88670.0,0.01128]
[1766752399302,0.1466,88679.0,88670.0,0.01128]
[1766752399303,0.011277,88676.0,88670.0,0.01128]
[1766752399968,0.011277,88676.0,88670.0,0.01138099]
[1766752400849,0.01127726,88674.0,88670.0,0.01138099]
[1766752401053,0.01127713,88675.0,88670.0,0.01138099]
[1766752401274,0.01127726,88674.0,88670.0,0.01138099]
[1766752401471,0.05638822,88671.0,88670.0,0.00010099]
[1766752401787,0.21426432,88673.0,88670.0,9.9e-07]
[1766752401990,0.05638807,88672.0,88670.0,9.9e-07]
[1766752417302,0.11500835,88672.0,88670.0,9.9e-07]
[1766752425294,0.06766432,88673.0,88670.0,9.9e-07]
[1766752425492,0.06711432,88673.0,88670.0,9.9e-07]
[1766752427523,0.01128,88674.0,88670.0,9.9e-07]
[1766752427744,0.01128,88675.0,88670.0,9.9e-07]
[1766752428885,0.02255713,88675.0,88670.0,9.9e-07]
[1766752429293,0.01127726,88674.0,88670.0,9.9e-07]
[1766752429434,0.06766465,88673.0,88670.0,9.9e-07]
[1766752429834,0.05638804,88672.0,88670.0,9.9e-07]
[1766752439211,0.06766465,88673.0,88670.0,9.9e-07]
[1766752439396,0.01127726,88674.0,88670.0,9.9e-07]
[1766752439810,0.01127738,88673.0,88670.0,9.9e-07]
[1766752440006,0.05638794,88672.0,88670.0,9.9e-07]
[1766752455867,0.04478998,88672.0,88670.0,9.9e-07]
[1766752456106,0.02255726,88674.0,88670.0,9.9e-07]
[1766752456250,0.01128,88674.0,88670.0,9.9e-07]
[1766752459390,0.02255726,88674.0,88670.0,9.9e-07]
[1766752459626,0.01127738,88673.0,88670.0,9.9e-07]
[1766752483208,0.05638758,88672.0,88670.0,9.9e-07]
[1766752483818,0.06766496,88673.0,88670.0,9.9e-07]
[1766752484568,0.02255726,88674.0,88670.0,9.9e-07]
[1766752485222,0.01128,88674.0,88670.0,9.9e-07]
[1766752485767,0.02255726,88674.0,88670.0,9.9e-07]
[1766752486433,0.01128,88674.0,88670.0,9.9e-07]
[1766752487685,0.01127586,88685.0,88675.0,0.01127713]
[1766752487891,0.02437384,88690.0,88681.0,0.05638135]
[1766752488118,0.01128,88695.0,88688.0,0.01127548]
[1766752488314,0.02437384,88699.0,88691.0,0.0112751]
[1766752488477,0.01127408,88699.0,88691.0,0.0112751]
[1766752488895,0.01127408,88699.0,88690.0,0.06765097]
[1766752489211,0.01127421,88698.0,88690.0,0.01127522]
[1766752489414,0.01127408,88699.0,88690.0,0.01127522]
[1766752489615,0.01127395,88700.0,88691.0,0.0112751]
[1766752489980,0.01127395,88700.0,88690.0,0.01127522]
[1766752490166,0.01127383,88701.0,88691.0,0.0112751]
[1766752490527,0.01127383,88701.0,88691.0,0.06765001]
[1766752490819,0.0112737,88702.0,88693.0,0.01127484]
[1766752491017,0.0112737,88702.0,88694.0,0.01127471]
[1766752491215,0.0112737,88702.0,88693.0,0.01127484]
[1766752491416,0.0112737,88702.0,88694.0,0.01127471]
[1766752492132,0.01127383,88701.0,88692.0,0.01127497]
[1766752492331,0.01127383,88701.0,88693.0,0.01127484]
[1766752493714,0.0112737,88702.0,88693.0,0.01127484]
[1766752493913,0.0112737,88702.0,88692.0,0.01127497]
[1766752494115,0.01127395,88700.0,88692.0,0.01127497]
[1766752494906,0.01127408,88699.0,88689.0,0.4145785]
[1766752495108,0.01127408,88699.0,88690.0,0.01127522]
[1766752495566,0.01127421,88698.0,88690.0,0.01127522]
[1766752495741,0.01127408,88699.0,88690.0,0.01127522]
[1766752497128,0.01127421,88698.0,88689.0,0.4145785]
[1766752497333,0.01127421,88698.0,88690.0,0.01127522]
[1766752497554,0.01127421,88698.0,88689.0,0.01127535]
[1766752497764,0.01127408,88699.0,88690.0,0.01127522]
[1766752500470,0.01127383,88701.0,88692.0,0.01127497]
[1766752500782,0.01127395,88700.0,88692.0,0.01127497]
[1766752501184,0.01127408,88699.0,88690.0,0.40330315]
[1766752501485,0.01127421,88698.0,88689.0,0.01127535]
[1766752501635,0.01127433,88697.0,88689.0,0.01127535]
[1766752502472,0.01127421,88698.0,88690.0,0.01127522]
[1766752502936,0.01127421,88698.0,88689.0,0.01127535]
[1766752503168,0.01127421,88698.0,88690.0,0.01127522]
[1766752504068,0.01127421,88698.0,88689.0,0.01127535]
[1766752504225,0.01127421,88698.0,88690.0,0.01127522]
[1766752504936,0.06764572,88698.0,88686.0,0.0563783]
[1766752505119,0.001099,88690.0,88685.0,0.01128]
[1766752505497,0.01127459,88695.0,88687.0,0.0112756]
[1766752508873,0.01127459,88695.0,88686.0,0.01127573]
[1766752509392,0.01127459,88695.0,88687.0,0.0112756]
[1766752510403,0.01127459,88695.0,88686.0,0.01127573]
[1766752510692,0.01127471,88694.0,88686.0,0.01127573]
[1766752510860,0.01127471,88694.0,88685.0,0.02255586]
[1766752511053,0.01127471,88694.0,88686.0,0.01127573]
[1766752511674,0.01127459,88695.0,88686.0,0.01127573]
[1766752512658,0.01127459,88695.0,88687.0,0.0112756]
[1766752515912,0.01127459,88695.0,88686.0,0.01127573]
[1766752516064,0.01127459,88695.0,88685.0,0.02255586]
[1766752516065,0.01127484,88693.0,88685.0,0.01128]
[1766752516596,0.01127471,88694.0,88686.0,0.01127573]
[1766752517182,0.01127471,88694.0,88685.0,0.02255586]
[1766752517400,0.01127484,88693.0,88685.0,0.02255586]
[1766752517604,0.01127471,88694.0,88685.0,0.02255586]
[1766752518422,0.01127484,88693.0,88685.0,0.02255586]
[1766752518600,0.01127471,88694.0,88686.0,0.01127573]
[1766752519521,0.01127471,88694.0,88685.0,0.02255586]
[1766752520225,0.01127459,88695.0,88686.0,0.01127573]
[1766752520850,0.01127471,88694.0,88686.0,0.01127573]
[1766752521040,0.01127484,88693.0,88685.0,0.02255586]
[1766752521436,0.01127535,88689.0,88675.0,0.01127713]
[1766752521637,0.01127586,88685.0,88676.0,0.01128]
[1766752521937,0.01127599,88684.0,88676.0,0.01128]
[1766752522277,0.0112756,88687.0,88678.0,0.01127675]
[1766752522478,0.0112756,88687.0,88679.0,0.01127662]
[1766752522618,0.0112751,88691.0,88681.0,0.01127637]
[1766752522974,0.0112751,88691.0,88682.0,0.01127624]
[1766752523338,0.01127522,88690.0,88682.0,0.01127624]
[1766752524412,0.0112751,88691.0,88682.0,0.01127624]
[1766752524624,0.01127522,88690.0,88682.0,0.01127624]
[1766752526311,0.0112751,88691.0,88682.0,0.01127624]
[1766752526513,0.01127522,88690.0,88682.0,0.01127624]
[1766752526919,0.01127535,88689.0,88679.0,0.06765932]
[1766752527187,0.0112756,88687.0,88678.0,0.15863675]
[1766752527420,0.0112756,88687.0,88679.0,0.01127662]
[1766752527736,0.01127535,88689.0,88679.0,0.01127662]
[1766752527917,0.01127548,88688.0,88679.0,0.01127662]
[1766752528115,0.01127548,88688.0,88680.0,0.01127649]
[1766752528324,0.01127535,88689.0,88681.0,0.01127637]
[1766752528500,0.01127535,88689.0,88680.0,0.01127649]
[1766752528906,0.14346,88687.0,88680.0,0.01127649]
[1766752529100,0.14346,88687.0,88681.0,0.01127637]
[1766752529422,0.14346,88687.0,88680.0,0.01127649]
[1766752529624,0.14346,88687.0,88681.0,0.01127637]
[1766752530046,0.01127535,88689.0,88681.0,0.01127637]
[1766752530193,0.01127522,88690.0,88681.0,0.01127637]
[1766752530603,0.01127535,88689.0,88681.0,0.01127637]
[1766752531032,0.01127522,88690.0,88681.0,0.01127637]
[1766752531757,0.01127548,88688.0,88680.0,0.01127649]
[1766752531909,0.01127535,88689.0,88680.0,0.01127649]
[1766752532117,0.01127535,88689.0,88681.0,0.01127637]
[1766752532867,0.01127535,88689.0,88680.0,0.01127649]
[1766752533025,0.01127535,88689.0,88681.0,0.01127637]
[1766752534049,0.01127522,88690.0,88682.0,0.01127624]
[1766752535778,0.01127522,88690.0,88681.0,0.15863637]
[1766752536180,0.01127522,88690.0,88682.0,0.01127624]
[1766752536342,0.01127522,88690.0,88681.0,0.15863637]
[1766752536679,0.01127522,88690.0,88682.0,0.01127624]
[1766752536893,0.01127535,88689.0,88681.0,0.15863637]
[1766752537297,0.01127522,88690.0,88681.0,0.15863637]
[1766752537707,0.01127522,88690.0,88682.0,0.01127624]
[1766752537897,0.01127535,88689.0,88680.0,0.01127649]
[1766752538107,0.14346,88688.0,88680.0,0.01127649]